fUST/lending_fUST_20250116
["ID","MTS","AMOUNT","RATE_DAILY","PERIOD"]
[349077980,1736962238073,-2113.95,0.00019315,3]
[349077982,1736962238082,-500.0,0.00019315,3]
[349077983,1736962238092,-609.28029143,0.00019315,3]
[349077984,1736962238102,-500.0,0.00019315,3]
[349077985,1736962238111,-500.0,0.00019315,3]
[349077987,1736962238121,-500.0,0.00019315,3]
[349077989,1736962238130,-501.88199142,0.00019315,3]
[349077991,1736962238140,-500.0,0.00019315,3]
[349077993,1736962238150,-500.0,0.00019315,3]
[349077995,1736962238159,-500.0,0.00019315,3]
[349077997,1736962238169,-500.0,0.00019315,3]
[349077999,1736962238178,-500.0,0.00019315,3]
[349078000,1736962238188,-500.0,0.00019315,3]
[349078001,1736962238197,-500.0,0.00019315,3]
[349078002,1736962238207,-500.0,0.00019315,3]
[349078003,1736962238216,-500.0,0.00019315,3]
[349078004,1736962238226,-240.2010582,0.00019315,3]
[349078005,1736962238236,-500.0,0.00019315,3]
[349078006,1736962238245,-500.0,0.00019315,3]
[349078007,1736962238254,-500.0,0.00019315,3]
[349078008,1736962238264,-401.61160452,0.00019315,3]
[349078009,1736962238273,-500.0,0.00019315,3]
[349078010,1736962238282,-812.23,0.00019315,3]
[349078011,1736962238292,-188.0,0.00019315,2]
[349078012,1736962238301,-500.0,0.00019315,3]
[349078013,1736962238310,-500.0,0.00019315,3]
[349078014,1736962238320,-1119.83,0.00019315,3]
[349078015,1736962238330,-300.71718422,0.00019315,3]
[349078016,1736962238339,-746.63,0.00019315,3]
[349078017,1736962238348,-2491.16,0.00019315,3]
[349078018,1736962238358,-500.0,0.00019315,3]
[349078019,1736962238367,-500.0,0.00019315,3]
[349078020,1736962238377,-415.11127533,0.00019315,3]
[349078021,1736962238387,-500.0,0.00019315,3]
[349078022,1736962238396,-500.0,0.00019315,3]
[349078023,1736962238405,-209.83103778,0.00019315,3]
[349078024,1736962238415,-500.0,0.00019315,3]
[349078025,1736962238424,-500.0,0.00019315,3]
[349078026,1736962238434,-500.0,0.00019315,3]
[349078027,1736962238444,-15248.44,0.00019315,3]
[349078028,1736962238453,-500.0,0.00019315,3]
[349078029,1736962238463,-1461.28,0.00019315,3]
[349078030,1736962238473,-500.0,0.00019315,3]
[349078031,1736962238482,-500.0,0.00019315,3]
[349078032,1736962238491,-534.97,0.00019315,3]
[349078033,1736962238501,-500.0,0.00019315,3]
[349078034,1736962238510,-500.0,0.00019315,3]
[349078035,1736962238519,-1343.69,0.00019315,3]
[349078036,1736962238529,-500.0,0.00019315,3]
[349078037,1736962238538,-500.0,0.00019315,3]
[349078038,1736962238548,-500.0,0.00019315,3]
[349078039,1736962238558,-500.0,0.00019315,3]
[349078040,1736962238567,-500.0,0.00019315,3]
[349078041,1736962238577,-500.0,0.00019315,3]
[349078042,1736962238587,-1285.86,0.00019315,3]
[349078043,1736962238596,-325.50124391,0.00019315,3]
[349078044,1736962238605,-500.0,0.00019315,3]
[349078045,1736962238624,-500.0,0.00019315,3]
[349078046,1736962238637,-768.95856921,0.00019315,7]
[349078047,1736962238646,-716.02,0.00019315,3]
[349078048,1736962238656,-500.0,0.00019315,3]
[349078049,1736962238666,-627.74,0.00019315,3]
[349078050,1736962238676,-500.0,0.00019315,3]
[349078051,1736962238780,-769.62,0.00019315,3]
[349078052,1736962238797,-500.0,0.00019315,3]
[349078053,1736962238807,-500.0,0.00019315,3]
[349078054,1736962238817,-578.53,0.00019315,3]
[349078055,1736962238826,-500.0,0.00019315,3]
[349078056,1736962238836,-500.0,0.00019315,3]
[349078057,1736962238845,-500.0,0.00019315,3]
[349078058,1736962238855,-4310.93,0.00019315,3]
[349078059,1736962238864,-500.0,0.00019315,3]
[349078060,1736962238873,-500.0,0.00019315,3]
[349078061,1736962238886,-500.0,0.00019315,3]
[349078062,1736962238896,-500.0,0.00019315,3]
[349078063,1736962238905,-500.0,0.00019315,3]
[349078064,1736962238914,-500.0,0.00019315,3]
[349078065,1736962238924,-500.0,0.00019315,3]
[349078066,1736962238933,-500.0,0.00019315,3]
[349078067,1736962238942,-500.0,0.00019315,3]
[349078068,1736962238951,-500.0,0.00019315,3]
[349078069,1736962238961,-500.0,0.00019315,3]
[349078070,1736962238970,-500.0,0.00019315,3]
[349078071,1736962238979,-360.788483,0.00019373,2]
[349078072,1736962238989,-503.90692776,0.00019373,2]
[349078073,1736962238999,-500.0,0.00019373,2]
[349078074,1736962239010,-162.17853864,0.00019373,2]
[349078075,1736962239020,-580.20875459,0.00019373,2]
[349078076,1736962239030,-446.39871113,0.00019373,2]
[349078077,1736962239039,-500.0,0.00019373,2]
[349078078,1736962239048,-537.64145595,0.00019373,2]
[349078079,1736962239058,-500.0,0.00019373,2]
[349078080,1736962239068,-503.55846386,0.00019373,2]
[349078081,1736962239078,-421.84303835,0.00019386,2]
[349078082,1736962239087,-10741.95114881,0.00019389,2]
[349078083,1736962239097,-1726.31,0.00019451,3]
[349078084,1736962239106,-1726.31,0.00019451,3]
[349078085,1736962239116,-1726.31,0.00019451,3]
[349078086,1736962239126,-1726.31,0.00019451,3]
[349078087,1736962239143,-1726.51406496,0.00019451,3]
[349078088,1736962239153,-500.0,0.00019452,2]
[349078089,1736962239162,-500.0,0.00019452,3]
[349078090,1736962239174,-500.0,0.00019452,3]
[349078091,1736962239187,-500.0,0.00019452,3]
[349078092,1736962239198,-500.0,0.00019452,3]
[349078093,1736962239210,-500.0,0.00019452,3]
[349078094,1736962239222,-182.11261605,0.00019452,2]
[349078095,1736962239234,-162.20121538,0.00019452,3]
[349078096,1736962239243,-500.0,0.00019452,3]
[349078097,1736962239253,-500.0,0.00019452,3]
[349078098,1736962239263,-500.0,0.00019452,3]
[349078099,1736962239272,-500.0,0.00019452,3]
[349078100,1736962239282,-500.0,0.00019452,3]
[349078101,1736962239291,-500.0,0.00019452,3]
[349078102,1736962239300,-500.0,0.00019452,3]
[349078103,1736962239309,-500.0,0.00019452,3]
[349078104,1736962239319,-500.0,0.00019452,3]
[349078105,1736962239329,-500.0,0.00019452,3]
[349078106,1736962239339,-268.3393543,0.00019452,3]
[349078107,1736962239348,-573.36576732,0.00019452,3]
[349078108,1736962239358,-500.0,0.00019452,3]
[349078109,1736962239367,-243.46826239,0.00019452,3]
[349078110,1736962239377,-500.0,0.00019452,3]
[349078111,1736962239390,-500.0,0.00019452,3]
[349078112,1736962239400,-500.0,0.00019452,3]
[349078113,1736962239410,-500.0,0.00019452,3]
[349078114,1736962239419,-500.0,0.00019452,3]
[349078115,1736962239428,-500.0,0.00019452,3]
[349078116,1736962239438,-500.0,0.00019452,3]
[349078117,1736962239447,-500.0,0.00019452,3]
[349078118,1736962239456,-500.0,0.00019452,3]
[349078119,1736962239465,-500.0,0.00019452,3]
[349078120,1736962239475,-500.0,0.00019452,3]
[349078121,1736962239484,-500.0,0.00019452,3]
[349078122,1736962239493,-500.0,0.00019452,3]
[349078123,1736962239503,-500.0,0.00019452,3]
[349078124,1736962239513,-500.0,0.00019452,3]
[349078125,1736962239523,-500.0,0.00019452,3]
[349078126,1736962239532,-500.0,0.00019452,3]
[349078127,1736962239542,-500.0,0.00019452,3]
[349078128,1736962239552,-500.0,0.00019452,3]
[349078129,1736962239561,-500.0,0.00019452,3]
[349078130,1736962239570,-500.0,0.00019452,3]
[349078131,1736962239580,-500.0,0.00019452,3]
[349078132,1736962239589,-500.0,0.00019452,3]
[349078133,1736962239599,-500.0,0.00019452,3]
[349078134,1736962239608,-500.0,0.00019452,3]
[349078135,1736962239618,-500.0,0.00019452,3]
[349078136,1736962239630,-500.0,0.00019452,3]
[349078138,1736962239640,-500.0,0.00019452,3]
[349078139,1736962239649,-500.0,0.00019452,3]
[349078140,1736962239658,-500.0,0.00019452,3]
[349078141,1736962239668,-500.0,0.00019452,3]
[349078143,1736962239678,-500.0,0.00019452,3]
[349078144,1736962239687,-500.0,0.00019452,3]
[349078145,1736962239696,-500.0,0.00019452,3]
[349078146,1736962239709,-500.0,0.00019452,3]
[349078147,1736962239719,-500.0,0.00019452,3]
[349078148,1736962239728,-301.48831961,0.00019452,3]
[349078149,1736962239739,-436.27963808,0.00019452,3]
[349078150,1736962239748,-592.3,0.00019452,2]
[349078151,1736962239758,-597.79536954,0.00019452,3]
[349078152,1736962239767,-522.65219451,0.00019452,3]
[349078153,1736962239778,-500.0,0.00019452,3]
[349078154,1736962239788,-500.0,0.00019452,3]
[349078155,1736962239798,-500.0,0.00019452,3]
[349078156,1736962239807,-500.0,0.00019452,3]
[349078157,1736962239817,-500.0,0.00019452,3]
[349078158,1736962239827,-500.0,0.00019452,3]
[349078159,1736962239836,-500.0,0.00019452,3]
[349078160,1736962239846,-9748.22,0.00019452,3]
[349078161,1736962239856,-500.0,0.00019452,3]
[349078162,1736962239866,-500.0,0.00019452,3]
[349078163,1736962239875,-500.0,0.00019452,3]
[349078164,1736962239888,-341.77576464,0.00019452,3]
[349078166,1736962239898,-2113.95,0.00019452,3]
[349078168,1736962239909,-500.0,0.00019452,3]
[349078169,1736962239919,-500.0,0.00019452,3]
[349078170,1736962239928,-500.0,0.00019452,3]
[349078172,1736962239939,-500.0,0.00019452,3]
[349078173,1736962239948,-500.0,0.00019452,3]
[349078174,1736962239957,-500.0,0.00019452,3]
[349078175,1736962239967,-429.29119493,0.00019452,3]
[349078177,1736962240160,-70.70880507,0.00019452,3]
[349078178,1736962240170,-500.0,0.00019452,3]
[349078179,1736962240180,-500.0,0.00019452,3]
[349078180,1736962240189,-500.0,0.00019452,3]
[349078181,1736962240199,-500.0,0.00019452,3]
[349078182,1736962240209,-500.0,0.00019452,3]
[349078184,1736962240221,-500.0,0.00019452,3]
[349078186,1736962240230,-812.23,0.00019452,3]
[349078187,1736962240239,-188.0,0.00019452,2]
[349078189,1736962240249,-1119.83,0.00019452,3]
[349078191,1736962240258,-746.63,0.00019452,3]
[349078193,1736962240267,-2491.16,0.00019452,3]
[349078194,1736962240276,-500.0,0.00019452,3]
[349078195,1736962240286,-500.0,0.00019452,3]
[349078196,1736962240295,-500.0,0.00019452,3]
[349078197,1736962240307,-500.0,0.00019452,3]
[349078198,1736962240317,-576.43971423,0.00019452,3]
[349078199,1736962240326,-500.0,0.00019452,3]
[349078200,1736962240337,-15248.44,0.00019452,3]
[349078201,1736962240346,-1461.28,0.00019452,3]
[349078202,1736962240355,-500.0,0.00019452,3]
[349078203,1736962240365,-534.97,0.00019452,3]
[349078204,1736962240375,-1343.69,0.00019452,3]
[349078205,1736962240386,-500.0,0.00019452,3]
[349078206,1736962240397,-500.0,0.00019452,3]
[349078207,1736962240407,-500.0,0.00019452,3]
[349078208,1736962240418,-500.0,0.00019452,3]
[349078209,1736962240427,-500.0,0.00019452,3]
[349078210,1736962240437,-1285.86,0.00019452,3]
[349078211,1736962240447,-500.0,0.00019452,3]
[349078212,1736962240456,-586.62,0.00019452,3]
[349078213,1736962240466,-716.02,0.00019452,3]
[349078214,1736962240475,-505.0,0.00019452,3]
[349078215,1736962240485,-627.74,0.00019452,3]
[349078216,1736962240495,-505.76324439,0.00019452,3]
[349078217,1736962240504,-769.62,0.00019452,3]
[349078218,1736962240514,-500.0,0.00019452,3]
[349078219,1736962240523,-500.0,0.00019452,3]
[349078220,1736962240533,-578.53,0.00019452,3]
[349078221,1736962240543,-500.0,0.00019452,3]
[349078222,1736962240552,-500.0,0.00019452,3]
[349078223,1736962240562,-500.0,0.00019452,3]
[349078224,1736962240572,-4310.93,0.00019452,3]
[349078225,1736962240582,-500.0,0.00019452,3]
[349078226,1736962240591,-500.0,0.00019452,3]
[349078227,1736962240601,-500.0,0.00019452,3]
[349078228,1736962240611,-500.0,0.00019452,3]
[349078229,1736962240620,-500.0,0.00019452,3]
[349078230,1736962240631,-500.0,0.00019452,3]
[349078231,1736962240640,-550.4486615,0.00019452,3]
[349078232,1736962240650,-500.0,0.00019452,3]
[349078233,1736962240659,-500.0,0.00019452,3]
[349078234,1736962240669,-500.0,0.00019473,2]
[349078235,1736962240679,-500.82980106,0.00019473,2]
[349078236,1736962240688,-500.0,0.00019473,2]
[349078237,1736962240699,-500.0,0.00019473,2]
[349078238,1736962240713,-421.84303835,0.00019489,2]
[349078239,1736962240723,-499.99237989,0.00019589,2]
[349078240,1736962240733,-500.0,0.00019589,3]
[349078241,1736962240742,-500.0,0.00019589,3]
[349078242,1736962240752,-500.0,0.00019589,3]
[349078243,1736962240762,-500.0,0.00019589,3]
[349078244,1736962240771,-500.0,0.00019589,3]
[349078245,1736962240783,-500.0,0.00019589,3]
[349078246,1736962240793,-500.0,0.00019589,3]
[349078247,1736962240802,-500.0,0.00019589,3]
[349078248,1736962240812,-500.0,0.00019589,3]
[349078249,1736962240822,-500.0,0.00019589,3]
[349078250,1736962240833,-500.0,0.00019589,3]
[349078251,1736962240842,-500.0,0.00019589,3]
[349078252,1736962240852,-500.0,0.00019589,3]
[349078253,1736962240861,-500.0,0.00019589,3]
[349078254,1736962240871,-500.0,0.00019589,3]
[349078255,1736962240881,-500.0,0.00019589,3]
[349078256,1736962240891,-500.0,0.00019589,3]
[349078257,1736962240901,-500.0,0.00019589,3]
[349078258,1736962240910,-500.0,0.00019589,3]
[349078259,1736962240920,-500.0,0.00019589,3]
[349078260,1736962240929,-300.65997421,0.00019589,3]
[349078261,1736962240939,-500.0,0.00019589,3]
[349078262,1736962240949,-500.0,0.00019589,3]
[349078263,1736962240959,-500.0,0.00019589,3]
[349078264,1736962240968,-500.0,0.00019589,3]
[349078265,1736962240978,-500.0,0.00019589,3]
[349078266,1736962240988,-500.0,0.00019589,3]
[349078267,1736962240998,-500.0,0.00019589,3]
[349078268,1736962241075,-500.0,0.00019589,3]
[349078269,1736962241086,-500.0,0.00019589,3]
[349078270,1736962241096,-500.0,0.00019589,3]
[349078271,1736962241106,-500.0,0.00019589,3]
[349078272,1736962241116,-500.0,0.00019589,3]
[349078273,1736962241126,-500.0,0.00019589,3]
[349078274,1736962241138,-500.0,0.00019589,3]
[349078275,1736962241148,-500.0,0.00019589,3]
[349078276,1736962241158,-169.49081305,0.00019589,3]
[349078277,1736962241167,-500.0,0.00019589,3]
[349078278,1736962241177,-500.0,0.00019589,3]
[349078279,1736962241187,-500.0,0.00019589,3]
[349078280,1736962241196,-589.59551017,0.00019589,3]
[349078281,1736962241206,-500.0,0.00019589,3]
[349078282,1736962241218,-500.0,0.00019589,3]
[349078283,1736962241228,-280.92796047,0.00019589,3]
[349078284,1736962241238,-592.3,0.00019589,2]
[349078285,1736962241248,-500.0,0.00019589,3]
[349078286,1736962241258,-500.0,0.00019589,3]
[349078287,1736962241268,-500.0,0.00019589,3]
[349078288,1736962241278,-500.0,0.00019589,3]
[349078289,1736962241288,-500.0,0.00019589,3]
[349078290,1736962241298,-383.64978709,0.00019589,3]
[349078291,1736962241307,-500.0,0.00019589,3]
[349078292,1736962241317,-9748.22,0.00019589,3]
[349078293,1736962241327,-500.0,0.00019589,3]
[349078294,1736962241337,-500.0,0.00019589,3]
[349078295,1736962241346,-500.0,0.00019589,3]
[349078296,1736962241356,-2113.95,0.00019589,3]
[349078297,1736962241366,-500.0,0.00019589,3]
[349078298,1736962241376,-500.0,0.00019589,3]
[349078299,1736962241387,-500.0,0.00019589,3]
[349078300,1736962241396,-500.0,0.00019589,3]
[349078301,1736962241406,-500.0,0.00019589,3]
[349078302,1736962241420,-500.0,0.00019589,3]
[349078303,1736962241430,-500.0,0.00019589,3]
[349078304,1736962241439,-500.0,0.00019589,3]
[349078305,1736962241449,-500.0,0.00019589,3]
[349078306,1736962241459,-500.0,0.00019589,3]
[349078307,1736962241468,-812.23,0.00019589,3]
[349078308,1736962241478,-1119.83,0.00019589,3]
[349078309,1736962241488,-746.63,0.00019589,3]
[349078310,1736962241498,-2491.16,0.00019589,3]
[349078311,1736962241508,-500.0,0.00019589,3]
[349078312,1736962241518,-500.0,0.00019589,3]
[349078313,1736962241528,-500.0,0.00019589,3]
[349078314,1736962241538,-500.0,0.00019589,3]
[349078315,1736962241548,-500.0,0.00019589,3]
[349078316,1736962241558,-15248.44,0.00019589,3]
[349078317,1736962241568,-1461.28,0.00019589,3]
[349078318,1736962241578,-500.0,0.00019589,3]
[349078319,1736962241588,-534.97,0.00019589,3]
[349078320,1736962241597,-1343.69,0.00019589,3]
[349078321,1736962241608,-500.0,0.00019589,3]
[349078322,1736962241618,-500.0,0.00019589,3]
[349078323,1736962241628,-500.0,0.00019589,3]
[349078324,1736962241639,-500.0,0.00019589,3]
[349078325,1736962241649,-1285.86,0.00019589,3]
[349078326,1736962241659,-500.0,0.00019589,3]
[349078327,1736962241669,-716.02,0.00019589,3]
[349078328,1736962241679,-627.74,0.00019589,3]
[349078329,1736962241689,-769.62,0.00019589,3]
[349078330,1736962241700,-500.0,0.00019589,3]
[349078331,1736962241713,-500.0,0.00019589,3]
[349078332,1736962241723,-578.53,0.00019589,3]
[349078333,1736962241733,-500.0,0.00019589,3]
[349078334,1736962241743,-500.0,0.00019589,3]
[349078335,1736962241753,-500.0,0.00019589,3]
[349078336,1736962241763,-4310.93,0.00019589,3]
[349078337,1736962241772,-500.0,0.00019589,3]
[349078338,1736962241785,-500.0,0.00019589,3]
[349078339,1736962241795,-500.0,0.00019589,3]
[349078340,1736962241804,-500.0,0.00019589,3]
[349078341,1736962241814,-500.0,0.00019589,3]
[349078342,1736962241824,-500.0,0.00019589,3]
[349078343,1736962241834,-500.0,0.00019589,3]
[349078344,1736962241844,-2978.15941619,0.000196,2]
[349078345,1736962241854,-9939.78,0.000196,2]
[349078346,1736962241863,-338.277,0.00019677,2]
[349078347,1736962241873,-500.0,0.00019726,3]
[349078348,1736962241883,-606.02573004,0.00019726,3]
[349078349,1736962241894,-500.0,0.00019726,3]
[349078350,1736962241903,-500.0,0.00019726,3]
[349078351,1736962241913,-500.0,0.00019726,3]
[349078352,1736962241924,-500.0,0.00019726,3]
[349078353,1736962241934,-500.0,0.00019726,3]
[349078354,1736962241944,-500.0,0.00019726,3]
[349078355,1736962241954,-500.0,0.00019726,3]
[349078356,1736962241964,-500.0,0.00019726,3]
[349078357,1736962241973,-500.0,0.00019726,3]
[349078358,1736962241983,-500.0,0.00019726,3]
[349078359,1736962241993,-500.0,0.00019726,3]
[349078360,1736962242003,-500.0,0.00019726,3]
[349078361,1736962242013,-500.0,0.00019726,3]
[349078362,1736962242023,-500.0,0.00019726,3]
[349078363,1736962242034,-500.0,0.00019726,3]
[349078364,1736962242043,-500.0,0.00019726,3]
[349078365,1736962242054,-500.0,0.00019726,3]
[349078366,1736962242064,-503.32122877,0.00019726,3]
[349078367,1736962242074,-500.0,0.00019726,3]
[349078368,1736962242083,-393.57586248,0.00019726,3]
[349078369,1736962242094,-500.0,0.00019726,3]
[349078370,1736962242104,-500.0,0.00019726,3]
[349078371,1736962242184,-500.0,0.00019726,3]
[349078372,1736962242209,-294.62085274,0.00019726,3]
[349078373,1736962242221,-500.0,0.00019726,3]
[349078374,1736962242230,-500.0,0.00019726,3]
[349078375,1736962242240,-500.0,0.00019726,3]
[349078376,1736962242252,-500.0,0.00019726,3]
[349078377,1736962242263,-500.0,0.00019726,3]
[349078378,1736962242273,-524.27,0.00019726,3]
[349078379,1736962242283,-500.0,0.00019726,3]
[349078380,1736962242292,-592.3,0.00019726,2]
[349078381,1736962242302,-500.0,0.00019726,3]
[349078382,1736962242313,-236.14239384,0.00019726,3]
[349078383,1736962242323,-500.0,0.00019726,3]
[349078384,1736962242332,-500.0,0.00019726,3]
[349078385,1736962242342,-277.00922841,0.00019726,3]
[349078386,1736962242352,-9748.22,0.00019726,3]
[349078387,1736962242362,-500.0,0.00019726,3]
[349078388,1736962242372,-325.29440069,0.00019726,3]
[349078389,1736962242383,-500.0,0.00019726,3]
[349078390,1736962242395,-2113.95,0.00019726,3]
[349078391,1736962242405,-500.0,0.00019726,3]
[349078392,1736962242415,-500.0,0.00019726,3]
[349078393,1736962242424,-500.0,0.00019726,3]
[349078394,1736962242433,-393.31849168,0.00019726,3]
[349078395,1736962242443,-500.0,0.00019726,3]
[349078396,1736962242457,-500.0,0.00019726,3]
[349078397,1736962242467,-500.0,0.00019726,3]
[349078398,1736962242477,-500.0,0.00019726,3]
[349078399,1736962242487,-180.80607892,0.00019726,3]
[349078400,1736962242497,-812.23,0.00019726,3]
[349078402,1736962242506,-1119.83,0.00019726,3]
[349078403,1736962242516,-746.63,0.00019726,3]
[349078404,1736962242526,-2491.16,0.00019726,3]
[349078405,1736962242536,-500.0,0.00019726,3]
[349078407,1736962242546,-500.0,0.00019726,3]
[349078408,1736962242556,-500.0,0.00019726,3]
[349078409,1736962242566,-500.0,0.00019726,3]
[349078410,1736962242576,-500.0,0.00019726,3]
[349078411,1736962242587,-15248.44,0.00019726,3]
[349078412,1736962242596,-1461.28,0.00019726,3]
[349078413,1736962242606,-500.0,0.00019726,3]
[349078414,1736962242614,-534.97,0.00019726,3]
[349078415,1736962242624,-1343.69,0.00019726,3]
[349078416,1736962242638,-500.0,0.00019726,3]
[349078417,1736962242648,-500.0,0.00019726,3]
[349078418,1736962242658,-500.0,0.00019726,3]
[349078419,1736962242668,-500.0,0.00019726,3]
[349078421,1736962242678,-1285.86,0.00019726,3]
[349078422,1736962242688,-500.0,0.00019726,3]
[349078423,1736962242698,-716.02,0.00019726,3]
[349078425,1736962242715,-627.74,0.00019726,3]
[349078428,1736962242732,-769.62,0.00019726,3]
[349078430,1736962242743,-518.41273249,0.00019726,3]
[349078433,1736962242752,-500.0,0.00019726,3]
[349078434,1736962242762,-578.53,0.00019726,3]
[349078436,1736962242771,-500.0,0.00019726,3]
[349078437,1736962242781,-500.0,0.00019726,3]
[349078439,1736962242790,-500.0,0.00019726,3]
[349078442,1736962242799,-4310.93,0.00019726,3]
[349078443,1736962242809,-500.0,0.00019726,3]
[349078445,1736962242818,-500.0,0.00019726,3]
[349078448,1736962242828,-500.0,0.00019726,3]
[349078449,1736962242838,-500.0,0.00019726,3]
[349078452,1736962242847,-500.0,0.00019726,3]
[349078454,1736962242856,-500.0,0.00019726,3]
[349078456,1736962242865,-500.0,0.00019726,3]
[349078458,1736962242875,-500.0,0.00019863,3]
[349078460,1736962242884,-500.0,0.00019863,3]
[349078462,1736962242893,-500.0,0.00019863,3]
[349078463,1736962242901,-500.0,0.00019863,3]
[349078464,1736962242910,-500.0,0.00019863,3]
[349078465,1736962242919,-500.0,0.00019863,3]
[349078466,1736962242928,-500.0,0.00019863,3]
[349078467,1736962242937,-583.34,0.00019863,3]
[349078469,1736962242947,-300.82624067,0.00019863,3]
[349078471,1736962242957,-500.0,0.00019863,3]
[349078472,1736962242966,-500.0,0.00019863,3]
[349078473,1736962242975,-500.0,0.00019863,3]
[349078475,1736962242984,-390.1802727,0.00019863,3]
[349078476,1736962242994,-500.0,0.00019863,3]
[349078478,1736962243004,-473.83802916,0.00019863,3]
[349078479,1736962243015,-500.0,0.00019863,3]
[349078480,1736962243025,-500.0,0.00019863,3]
[349078481,1736962243035,-500.0,0.00019863,3]
[349078482,1736962243044,-501.21,0.00019863,3]
[349078483,1736962243054,-500.0,0.00019863,3]
[349078484,1736962243063,-500.0,0.00019863,3]
[349078485,1736962243073,-203.45,0.00019863,3]
[349078486,1736962243082,-500.0,0.00019863,3]
[349078487,1736962243091,-500.0,0.00019863,3]
[349078488,1736962243101,-592.3,0.00019863,2]
[349078490,1736962243110,-196.15093824,0.00019863,3]
[349078491,1736962243119,-500.0,0.00019863,3]
[349078492,1736962243181,-500.0,0.00019863,3]
[349078493,1736962243191,-9748.22,0.00019863,3]
[349078494,1736962243201,-500.0,0.00019863,3]
[349078495,1736962243212,-2113.95,0.00019863,3]
[349078496,1736962243223,-500.0,0.00019863,3]
[349078497,1736962243233,-500.0,0.00019863,3]
[349078498,1736962243242,-500.0,0.00019863,3]
[349078499,1736962243251,-521.54934824,0.00019863,3]
[349078500,1736962243261,-500.0,0.00019863,3]
[349078501,1736962243270,-500.0,0.00019863,3]
[349078503,1736962243280,-500.0,0.00019863,3]
[349078505,1736962243289,-812.23,0.00019863,3]
[349078506,1736962243299,-1119.83,0.00019863,3]
[349078507,1736962243308,-746.63,0.00019863,3]
[349078508,1736962243317,-2491.16,0.00019863,3]
[349078509,1736962243327,-500.0,0.00019863,3]
[349078510,1736962243336,-500.0,0.00019863,3]
[349078511,1736962243346,-500.0,0.00019863,3]
[349078512,1736962243355,-500.0,0.00019863,3]
[349078513,1736962243365,-15248.44,0.00019863,3]
[349078514,1736962243374,-1461.28,0.00019863,3]
[349078515,1736962243384,-500.0,0.00019863,3]
[349078516,1736962243393,-534.97,0.00019863,3]
[349078517,1736962243403,-1343.69,0.00019863,3]
[349078518,1736962243412,-500.0,0.00019863,3]
[349078519,1736962243423,-500.0,0.00019863,3]
[349078520,1736962243433,-500.0,0.00019863,3]
[349078521,1736962243442,-500.0,0.00019863,3]
[349078522,1736962243453,-1285.86,0.00019863,3]
[349078523,1736962243464,-500.0,0.00019863,3]
[349078524,1736962243474,-716.02,0.00019863,3]
[349078525,1736962243483,-627.74,0.00019863,3]
[349078526,1736962243492,-769.62,0.00019863,3]
[349078527,1736962243502,-500.0,0.00019863,3]
[349078528,1736962243512,-578.53,0.00019863,3]